[Event "Late-Titled-Tuesday-Blitz-April-30-2024"]
[Site "Chess.com"]
[Date "2024.04.30"]
[Round "10"]
[White "Hikaru"]
[Black "only_strong_moves"]
[Result "1-0"]
[WhiteElo "3189"]
[BlackElo "2733"]
[TimeControl "180+1"]
[EndTime "15:54:25 PDT"]
[Termination "Hikaru won by resignation"]

1. h4 {[%clk 0:03:00.9]} 1... d5 {[%clk 0:02:58]} 2. d4 {[%clk 0:02:58]} 2...
Nf6 {[%clk 0:02:56.9]} 3. Bf4 {[%clk 0:02:53.4]} 3... c5 {[%clk 0:02:56.6]} 4.
e3 {[%clk 0:02:53.5]} 4... Nc6 {[%clk 0:02:56.3]} 5. c3 {[%clk 0:02:52.8]} 5...
Bf5 {[%clk 0:02:49.4]} 6. Nd2 {[%clk 0:02:51.2]} 6... e6 {[%clk 0:02:48.9]} 7.
h5 {[%clk 0:02:44.6]} 7... h6 {[%clk 0:02:48.1]} 8. f3 {[%clk 0:02:44.2]} 8...
cxd4 {[%clk 0:02:40.9]} 9. cxd4 {[%clk 0:02:43.9]} 9... Bd6 {[%clk 0:02:27.4]}
10. Bxd6 {[%clk 0:02:43.4]} 10... Qxd6 {[%clk 0:02:28.3]} 11. Kf2 {[%clk
0:02:43.4]} 11... Rc8 {[%clk 0:02:18.1]} 12. g4 {[%clk 0:02:42.4]} 12... Bh7
{[%clk 0:02:17.6]} 13. a3 {[%clk 0:02:27.1]} 13... e5 {[%clk 0:02:09.1]} 14. Nb3
{[%clk 0:02:24.9]} 14... O-O {[%clk 0:02:04.1]} 15. Bh3 {[%clk 0:02:15.5]} 15...
exd4 {[%clk 0:01:56.9]} 16. exd4 {[%clk 0:02:15.3]} 16... Qf4 {[%clk 0:01:21.3]}
17. Ne2 {[%clk 0:02:13.4]} 17... Ne4+ {[%clk 0:01:09.6]} 18. Kg2 {[%clk
0:02:13.7]} 18... Qe3 {[%clk 0:01:10.2]} 19. Rf1 {[%clk 0:02:14.5]} 19... Ng5
{[%clk 0:01:01.4]} 20. Rc1 {[%clk 0:02:14]} 20... Rfe8 {[%clk 0:01:00.5]} 21.
Nc3 {[%clk 0:02:04.2]} 21... Rcd8 {[%clk 0:00:41.6]} 22. Qd2 {[%clk 0:02:01.8]}
22... Qxd2+ {[%clk 0:00:38.7]} 23. Nxd2 {[%clk 0:02:02.1]} 23... Nxd4 {[%clk
0:00:38.8]} 24. Rfe1 {[%clk 0:01:54.8]} 24... Nge6 {[%clk 0:00:34.7]} 25. Kg3
{[%clk 0:01:53.6]} 25... Nc6 {[%clk 0:00:26.7]} 26. Bf1 {[%clk 0:01:46.9]} 26...
Kf8 {[%clk 0:00:21.4]} 27. Nb3 {[%clk 0:01:42.2]} 27... a6 {[%clk 0:00:20.7]}
28. Na4 {[%clk 0:01:42.2]} 28... d4 {[%clk 0:00:18.2]} 29. Bxa6 {[%clk 0:01:39]}
29... d3 {[%clk 0:00:18.4]} 30. Bxb7 {[%clk 0:01:38.8]} 30... Ncd4 {[%clk
0:00:16.1]} 31. Nxd4 {[%clk 0:01:37.9]} 31... Rxd4 {[%clk 0:00:17]} 32. Bc6
{[%clk 0:01:29.2]} 32... d2 {[%clk 0:00:10.3]} 33. Bxe8 {[%clk 0:01:29.4]} 33...
dxe1=Q+ {[%clk 0:00:10.1]} 34. Rxe1 {[%clk 0:01:29.9]} 34... Kxe8 {[%clk
0:00:10.7]} 35. Nc3 {[%clk 0:01:27.6]} 35... Rd2 {[%clk 0:00:10.2]} 36. b4
{[%clk 0:01:23]} 36... Rd3 {[%clk 0:00:10.1]} 37. Nb5 {[%clk 0:01:23.5]} 37...
Kd8 {[%clk 0:00:07.2]} 38. Kf2 {[%clk 0:01:21.5]} 38... Rd5 {[%clk 0:00:04.3]}
39. a4 {[%clk 0:01:21.2]} 39... Bd3 {[%clk 0:00:02.7]} 40. Nc3 {[%clk
0:01:19.3]} 40... Rd4 {[%clk 0:00:02.7]} 41. b5 {[%clk 0:01:12.5]} 41... Rc4
{[%clk 0:00:02.3]} 42. Rc1 {[%clk 0:01:08.2]} 42... Bh7 {[%clk 0:00:02.6]} 43.
Rd1+ {[%clk 0:01:07.7]} 43... Kc8 {[%clk 0:00:02.6]} 44. Nd5 {[%clk 0:01:08.3]}
44... Rc2+ {[%clk 0:00:02.4]} 45. Kg3 {[%clk 0:01:08.5]} 45... Kb7 {[%clk
0:00:01.8]} 46. a5 {[%clk 0:01:08.5]} 46... Rc5 {[%clk 0:00:01.7]} 47. a6+
{[%clk 0:01:05]} 47... Ka7 {[%clk 0:00:02]} 48. Nb4 {[%clk 0:01:05]} 48... Rxb5
{[%clk 0:00:01.6]} 49. Rd7+ {[%clk 0:01:05.3]} 49... Kb6 {[%clk 0:00:00.7]} 50.
Rb7+ {[%clk 0:00:50.1]} 50... Ka5 {[%clk 0:00:01.3]} 51. a7 {[%clk 0:00:50.1]}
51... Rxb7 {[%clk 0:00:00.7]} 52. a8=Q+ {[%clk 0:00:50.2]} 52... Kb6 {[%clk
0:00:01.3]} 53. Nd5+ {[%clk 0:00:49.3]} 53... Kc6 {[%clk 0:00:01.6]} 54. Ne3
{[%clk 0:00:46.2]} 54... Kb6 {[%clk 0:00:02.1]} 55. Nc4+ {[%clk 0:00:45.6]}
55... Kc6 {[%clk 0:00:02.4]} 56. Na5+ {[%clk 0:00:45.3]} 1-0

[Event "Late-Titled-Tuesday-Blitz-April-30-2024"]
[Site "Chess.com"]
[Date "2024.04.30"]
[Round "10"]
[White "Boninknights"]
[Black "Sjakkerntobi"]
[Result "1/2-1/2"]
[WhiteElo "2398"]
[BlackElo "2531"]
[TimeControl "180+1"]
[EndTime "15:54:25 PDT"]
[Termination "Game drawn by agreement"]

1. d4 {[%clk 0:02:59.4]} 1... Nf6 {[%clk 0:02:59.6]} 2. Nf3 {[%clk 0:02:58.8]}
2... e6 {[%clk 0:02:59.3]} 3. c4 {[%clk 0:02:58.5]} 3... c5 {[%clk 0:02:59.6]}
4. d5 {[%clk 0:02:57.2]} 4... exd5 {[%clk 0:03:00.5]} 5. cxd5 {[%clk 0:02:56.7]}
5... d6 {[%clk 0:03:01.1]} 6. Nc3 {[%clk 0:02:55.8]} 6... g6 {[%clk 0:03:01.3]}
7. Bg5 {[%clk 0:02:52.7]} 7... Bg7 {[%clk 0:03:01.3]} 8. Nd2 {[%clk 0:02:52]}
8... h6 {[%clk 0:02:50.7]} 9. Bh4 {[%clk 0:02:51.4]} 9... O-O {[%clk 0:02:50.6]}
10. e4 {[%clk 0:02:50]} 10... Re8 {[%clk 0:02:50.5]} 11. Be2 {[%clk 0:02:48.7]}
11... a6 {[%clk 0:02:50.4]} 12. a4 {[%clk 0:02:46.5]} 12... Nbd7 {[%clk
0:02:50.4]} 13. O-O {[%clk 0:02:44.6]} 13... Rb8 {[%clk 0:02:45.5]} 14. f4
{[%clk 0:02:43.2]} 14... Qc7 {[%clk 0:02:40.9]} 15. Kh1 {[%clk 0:02:42.2]} 15...
c4 {[%clk 0:02:12.6]} 16. e5 {[%clk 0:02:37.6]} 16... dxe5 {[%clk 0:02:10]} 17.
fxe5 {[%clk 0:02:35.1]} 17... Nh7 {[%clk 0:01:29.6]} 18. e6 {[%clk 0:02:30]}
18... fxe6 {[%clk 0:01:29.8]} 19. dxe6 {[%clk 0:02:28.7]} 19... Ne5 {[%clk
0:01:27.8]} 20. Nd5 {[%clk 0:02:19.1]} 20... Qc6 {[%clk 0:01:21.6]} 21. Ne7+
{[%clk 0:02:16.6]} 21... Rxe7 {[%clk 0:01:20.6]} 22. Bxe7 {[%clk 0:02:16.3]}
22... Bxe6 {[%clk 0:01:21.2]} 23. Nf3 {[%clk 0:02:08.1]} 23... Ng4 {[%clk
0:01:16.4]} 24. Nd4 {[%clk 0:01:51.4]} 24... Qe4 {[%clk 0:00:46.3]} 25. Nxe6
{[%clk 0:01:43.3]} 25... Ne3 {[%clk 0:00:46]} 26. Bf3 {[%clk 0:01:41.8]} 26...
Qxe6 {[%clk 0:00:45.3]} 27. Qd6 {[%clk 0:01:38.3]} 27... Qxd6 {[%clk 0:00:43.4]}
28. Bxd6 {[%clk 0:01:37.5]} 28... Rd8 {[%clk 0:00:43.9]} 29. Rfe1 {[%clk
0:01:17.3]} 29... Nc2 {[%clk 0:00:34.3]} 30. Be7 {[%clk 0:01:08]} 30... Rd7
{[%clk 0:00:26.7]} 31. Rad1 {[%clk 0:01:04]} 31... Nxe1 {[%clk 0:00:18.6]} 32.
Rxd7 {[%clk 0:01:01.7]} 32... Nxf3 {[%clk 0:00:19.5]} 33. gxf3 {[%clk
0:00:58.6]} 33... b5 {[%clk 0:00:19.6]} 34. axb5 {[%clk 0:00:52]} 34... axb5
{[%clk 0:00:20.5]} 35. Rb7 {[%clk 0:00:51.4]} 35... Bxb2 {[%clk 0:00:20]} 36.
Rxb5 {[%clk 0:00:51]} 36... c3 {[%clk 0:00:18.6]} 37. Rc5 {[%clk 0:00:50.1]}
37... Kf7 {[%clk 0:00:18]} 38. Bd6 {[%clk 0:00:46.4]} 38... Ng5 {[%clk
0:00:17.6]} 39. Be5 {[%clk 0:00:39.1]} 39... Nxf3 {[%clk 0:00:17.9]} 40. Bxc3
{[%clk 0:00:36.4]} 40... Bxc3 {[%clk 0:00:18.2]} 41. Rxc3 {[%clk 0:00:36.1]}
41... Ne5 {[%clk 0:00:18.6]} 42. Kg2 {[%clk 0:00:34.2]} 42... Kf6 {[%clk
0:00:19.1]} 43. Rc5 {[%clk 0:00:32.3]} 43... Kf5 {[%clk 0:00:19]} 44. Kg3 {[%clk
0:00:30.3]} 44... g5 {[%clk 0:00:19]} 45. h4 {[%clk 0:00:28.9]} 45... Kf6 {[%clk
0:00:17.6]} 46. hxg5+ {[%clk 0:00:27.3]} 46... hxg5 {[%clk 0:00:18]} 47. Ra5
{[%clk 0:00:23.2]} 47... Kf5 {[%clk 0:00:17.9]} 48. Rb5 {[%clk 0:00:22.7]} 48...
Ke4 {[%clk 0:00:16.7]} 49. Ra5 {[%clk 0:00:22]} 49... Kf5 {[%clk 0:00:17.2]} 50.
Rb5 {[%clk 0:00:21.7]} 50... Kf6 {[%clk 0:00:17]} 1/2-1/2

[Event "Late-Titled-Tuesday-Blitz-April-30-2024"]
[Site "Chess.com"]
[Date "2024.04.30"]
[Round "10"]
[White "PNEPaul"]
[Black "FMalexhdez"]
[Result "0-1"]
[WhiteElo "1973"]
[BlackElo "2219"]
[TimeControl "180+1"]
[EndTime "15:54:29 PDT"]
[Termination "FMalexhdez won by resignation"]

1. e4 {[%clk 0:02:45.4]} 1... c6 {[%clk 0:02:56]} 2. d4 {[%clk 0:02:44.3]} 2...
d5 {[%clk 0:02:55.9]} 3. Nc3 {[%clk 0:02:44.3]} 3... dxe4 {[%clk 0:02:53.2]} 4.
f3 {[%clk 0:02:44.6]} 4... exf3 {[%clk 0:02:51.5]} 5. Nxf3 {[%clk 0:02:44.6]}
5... Nf6 {[%clk 0:02:51.9]} 6. Bc4 {[%clk 0:02:44.2]} 6... Bg4 {[%clk
0:02:47.6]} 7. Bxf7+ {[%clk 0:02:43.5]} 7... Kxf7 {[%clk 0:02:45.9]} 8. Ne5+
{[%clk 0:02:43.4]} 8... Kg8 {[%clk 0:02:24.8]} 9. Nxg4 {[%clk 0:02:42.6]} 9...
Nbd7 {[%clk 0:02:17.6]} 10. O-O {[%clk 0:02:41.5]} 10... h5 {[%clk 0:02:16.1]}
11. Ne5 {[%clk 0:02:19.4]} 11... Nxe5 {[%clk 0:02:14.5]} 12. dxe5 {[%clk
0:02:19.1]} 12... Qxd1 {[%clk 0:01:57.2]} 13. Rxd1 {[%clk 0:02:17.3]} 13... Ng4
{[%clk 0:01:45.9]} 14. Bf4 {[%clk 0:02:16.8]} 14... e6 {[%clk 0:01:44.5]} 15.
Ne4 {[%clk 0:02:15.1]} 15... Re8 {[%clk 0:01:18.8]} 16. Rd7 {[%clk 0:02:06.6]}
16... Re7 {[%clk 0:01:18.4]} 17. Rad1 {[%clk 0:02:06]} 17... Kf7 {[%clk
0:00:57.5]} 18. Ng5+ {[%clk 0:01:38.2]} 18... Kg6 {[%clk 0:00:56.6]} 19. Rxe7
{[%clk 0:01:26.1]} 19... Bxe7 {[%clk 0:00:55.1]} 20. Nxe6 {[%clk 0:01:26.2]}
20... Kf5 {[%clk 0:00:48.4]} 21. h3 {[%clk 0:01:14.9]} 21... Kxe6 {[%clk
0:00:36.7]} 22. hxg4 {[%clk 0:01:14.2]} 22... Bc5+ {[%clk 0:00:35.2]} 23. Kf1
{[%clk 0:01:11.9]} 23... hxg4 {[%clk 0:00:35.4]} 24. g3 {[%clk 0:01:06.8]} 24...
Rh1+ {[%clk 0:00:20.5]} 25. Ke2 {[%clk 0:01:05.6]} 25... Rh2+ {[%clk 0:00:19.5]}
26. Kd3 {[%clk 0:01:03.8]} 26... g5 {[%clk 0:00:17.5]} 27. Bxg5 {[%clk
0:00:59.5]} 27... Kxe5 {[%clk 0:00:17.7]} 28. Bf4+ {[%clk 0:00:59.1]} 28... Kf5
{[%clk 0:00:16.7]} 29. Rd2 {[%clk 0:00:56.3]} 29... Rxd2+ {[%clk 0:00:15.3]} 30.
Kxd2 {[%clk 0:00:55.4]} 30... Ke4 {[%clk 0:00:15.6]} 31. c3 {[%clk 0:00:52.5]}
31... Kf3 {[%clk 0:00:14.7]} 32. Kd3 {[%clk 0:00:52.2]} 32... Bf2 {[%clk
0:00:14.7]} 33. Bb8 {[%clk 0:00:42.4]} 33... a6 {[%clk 0:00:12.9]} 34. b4 {[%clk
0:00:34.4]} 34... Bxg3 {[%clk 0:00:12.9]} 35. Ba7 {[%clk 0:00:33.3]} 35... Bf2
{[%clk 0:00:09.2]} 36. Bb8 {[%clk 0:00:31.5]} 36... g3 {[%clk 0:00:09.3]} 37.
Bxg3 {[%clk 0:00:31.2]} 37... Kxg3 {[%clk 0:00:09.7]} 38. Ke4 {[%clk 0:00:27.8]}
38... Be1 {[%clk 0:00:08.8]} 39. Kd4 {[%clk 0:00:25.5]} 39... Kf4 {[%clk
0:00:08.2]} 40. a3 {[%clk 0:00:25.1]} 40... Kf5 {[%clk 0:00:07.4]} 41. c4 {[%clk
0:00:19.4]} 41... b6 {[%clk 0:00:02.7]} 42. c5 {[%clk 0:00:13.4]} 42... b5
{[%clk 0:00:02.6]} 0-1

[Event "Late-Titled-Tuesday-Blitz-April-30-2024"]
[Site "Chess.com"]
[Date "2024.04.30"]
[Round "10"]
[White "albi1999"]
[Black "Kobalia"]
[Result "1-0"]
[WhiteElo "2670"]
[BlackElo "2789"]
[TimeControl "180+1"]
[EndTime "15:54:30 PDT"]
[Termination "albi1999 won on time"]

1. d4 {[%clk 0:03:00.9]} 1... d5 {[%clk 0:02:59.6]} 2. c4 {[%clk 0:03:00.7]}
2... c6 {[%clk 0:02:59.9]} 3. Nc3 {[%clk 0:02:58.2]} 3... Nf6 {[%clk 0:02:59.7]}
4. Nf3 {[%clk 0:02:53.5]} 4... e6 {[%clk 0:02:59.3]} 5. Bg5 {[%clk 0:02:47.5]}
5... Nbd7 {[%clk 0:02:59.1]} 6. e3 {[%clk 0:02:47.7]} 6... h6 {[%clk 0:02:58.2]}
7. Bh4 {[%clk 0:02:47.3]} 7... Be7 {[%clk 0:02:58.6]} 8. Rc1 {[%clk 0:02:38.4]}
8... O-O {[%clk 0:02:57.6]} 9. a3 {[%clk 0:02:37.9]} 9... a6 {[%clk 0:02:53.2]}
10. c5 {[%clk 0:02:37.2]} 10... Ng4 {[%clk 0:02:45.8]} 11. Bg3 {[%clk
0:02:16.7]} 11... f5 {[%clk 0:02:39.9]} 12. Be2 {[%clk 0:02:14.4]} 12... g5
{[%clk 0:02:36.1]} 13. Qd2 {[%clk 0:02:04.2]} 13... Ngf6 {[%clk 0:02:28.5]} 14.
h4 {[%clk 0:01:46.3]} 14... Ne4 {[%clk 0:02:22.1]} 15. Nxe4 {[%clk 0:01:46]}
15... fxe4 {[%clk 0:02:22.3]} 16. Ne5 {[%clk 0:01:26]} 16... gxh4 {[%clk
0:02:21.7]} 17. Bf4 {[%clk 0:01:15.8]} 17... Nxe5 {[%clk 0:02:21.3]} 18. Bxe5
{[%clk 0:01:00.1]} 18... Bf6 {[%clk 0:02:21.3]} 19. Bd6 {[%clk 0:00:55.1]} 19...
Rf7 {[%clk 0:02:21.2]} 20. f3 {[%clk 0:00:49]} 20... Rg7 {[%clk 0:02:06.7]} 21.
fxe4 {[%clk 0:00:40.6]} 21... Rxg2 {[%clk 0:02:05.3]} 22. Qd3 {[%clk 0:00:40.2]}
22... Qe8 {[%clk 0:01:54.4]} 23. e5 {[%clk 0:00:40.2]} 23... Bg5 {[%clk
0:01:51.6]} 24. Rf1 {[%clk 0:00:30.8]} 24... Bd7 {[%clk 0:00:35.7]} 25. Rf8+
{[%clk 0:00:28.8]} 25... Qxf8 {[%clk 0:00:36]} 26. Bxf8 {[%clk 0:00:29.4]} 26...
Rxf8 {[%clk 0:00:32.4]} 27. Qg6+ {[%clk 0:00:29.2]} 27... Kh8 {[%clk 0:00:32.7]}
28. Bd3 {[%clk 0:00:26.4]} 28... Rg1+ {[%clk 0:00:32.6]} 29. Ke2 {[%clk
0:00:22]} 29... Rg2+ {[%clk 0:00:22.7]} 30. Kd1 {[%clk 0:00:15.8]} 30... Rf5
{[%clk 0:00:13.7]} 31. Bxf5 {[%clk 0:00:12.2]} 31... exf5 {[%clk 0:00:13.9]} 32.
e6 {[%clk 0:00:10]} 32... Bxe6 {[%clk 0:00:13.7]} 33. Qxe6 {[%clk 0:00:08.2]}
33... h3 {[%clk 0:00:14.2]} 34. Qc8+ {[%clk 0:00:06.4]} 34... Kg7 {[%clk
0:00:13.7]} 35. Qxf5 {[%clk 0:00:04.3]} 35... h2 {[%clk 0:00:12]} 36. Qh3 {[%clk
0:00:04.3]} 36... Rf2 {[%clk 0:00:03.7]} 37. Ke1 {[%clk 0:00:04.3]} 37... Bxe3
{[%clk 0:00:03]} 38. Rd1 {[%clk 0:00:04.4]} 1-0

[Event "Late-Titled-Tuesday-Blitz-April-30-2024"]
[Site "Chess.com"]
[Date "2024.04.30"]
[Round "10"]
[White "masterofpuppets2"]
[Black "GalaxyRoman"]
[Result "0-1"]
[WhiteElo "2451"]
[BlackElo "2728"]
[TimeControl "180+1"]
[EndTime "15:54:31 PDT"]
[Termination "GalaxyRoman won by resignation"]

1. d4 {[%clk 0:03:00.9]} 1... Nf6 {[%clk 0:03:00]} 2. c4 {[%clk 0:03:01]} 2...
e6 {[%clk 0:02:59.1]} 3. Nc3 {[%clk 0:03:00.9]} 3... Bb4 {[%clk 0:02:59.5]} 4.
Qc2 {[%clk 0:03:01.5]} 4... d5 {[%clk 0:02:57.7]} 5. cxd5 {[%clk 0:03:01.8]}
5... exd5 {[%clk 0:02:57.7]} 6. Bg5 {[%clk 0:03:01.9]} 6... h6 {[%clk
0:02:57.8]} 7. Bh4 {[%clk 0:03:01.7]} 7... g5 {[%clk 0:02:56.7]} 8. Bg3 {[%clk
0:03:02.1]} 8... Ne4 {[%clk 0:02:56.6]} 9. e3 {[%clk 0:03:02.4]} 9... c6 {[%clk
0:02:48.9]} 10. Bd3 {[%clk 0:03:00.2]} 10... Nxg3 {[%clk 0:02:48.9]} 11. hxg3
{[%clk 0:02:58.9]} 11... Be6 {[%clk 0:02:47.7]} 12. f4 {[%clk 0:02:51.9]} 12...
Qe7 {[%clk 0:02:42.9]} 13. Nf3 {[%clk 0:02:47.1]} 13... f6 {[%clk 0:02:37.1]}
14. Bg6+ {[%clk 0:02:44]} 14... Bf7 {[%clk 0:02:36.3]} 15. Kf2 {[%clk
0:02:43.3]} 15... Nd7 {[%clk 0:02:34.3]} 16. Rhe1 {[%clk 0:02:28.5]} 16... O-O-O
{[%clk 0:02:29.7]} 17. Bxf7 {[%clk 0:02:24.6]} 17... Qxf7 {[%clk 0:02:30.6]} 18.
a3 {[%clk 0:02:14.8]} 18... Bd6 {[%clk 0:02:26.6]} 19. Nb5 {[%clk 0:02:11.1]}
19... Bb8 {[%clk 0:02:25.3]} 20. b4 {[%clk 0:02:02]} 20... Rhg8 {[%clk 0:02:23]}
21. Rac1 {[%clk 0:01:55.2]} 21... gxf4 {[%clk 0:02:20]} 22. gxf4 {[%clk
0:01:45.2]} 22... Qg7 {[%clk 0:02:16.5]} 23. Rg1 {[%clk 0:01:35.4]} 23... Qg3+
{[%clk 0:02:15.8]} 24. Kf1 {[%clk 0:01:35.5]} 24... Rde8 {[%clk 0:02:14.3]} 25.
Qf2 {[%clk 0:01:35]} 25... Qg4 {[%clk 0:02:04.8]} 26. Nc3 {[%clk 0:01:34.3]}
26... Kd8 {[%clk 0:02:02.7]} 27. a4 {[%clk 0:01:33.2]} 27... Re6 {[%clk
0:01:58.8]} 28. b5 {[%clk 0:01:32.2]} 28... Rge8 {[%clk 0:01:58.4]} 29. Nd1
{[%clk 0:01:23.2]} 29... Qg6 {[%clk 0:01:47.9]} 30. Rh1 {[%clk 0:01:17.5]} 30...
cxb5 {[%clk 0:01:41.2]} 31. axb5 {[%clk 0:01:17.1]} 31... Qd3+ {[%clk
0:01:38.7]} 32. Kg1 {[%clk 0:01:16.3]} 32... Qxb5 {[%clk 0:01:38.1]} 33. Rxh6
{[%clk 0:01:12]} 33... Rc6 {[%clk 0:01:36.5]} 34. Rxc6 {[%clk 0:01:09.1]} 34...
Qxc6 {[%clk 0:01:37.4]} 35. Qd2 {[%clk 0:00:57.6]} 35... Qc4 {[%clk 0:01:26.1]}
36. Nf2 {[%clk 0:00:57.3]} 36... Bc7 {[%clk 0:01:17.9]} 37. Nd3 {[%clk 0:00:48]}
37... a5 {[%clk 0:01:17.4]} 38. Rh7 {[%clk 0:00:38.8]} 38... a4 {[%clk
0:01:11.4]} 39. Nc5 {[%clk 0:00:31.6]} 39... Nxc5 {[%clk 0:01:08]} 40. dxc5
{[%clk 0:00:32.5]} 40... a3 {[%clk 0:01:06]} 41. Nd4 {[%clk 0:00:28.4]} 41... a2
{[%clk 0:00:57.6]} 42. Qb2 {[%clk 0:00:27.8]} 42... Rxe3 {[%clk 0:00:32]} 43.
Rxc7 {[%clk 0:00:26.8]} 43... Kxc7 {[%clk 0:00:24.6]} 44. Qb6+ {[%clk
0:00:25.2]} 44... Kc8 {[%clk 0:00:24.5]} 45. c6 {[%clk 0:00:18.9]} 45... a1=Q+
{[%clk 0:00:14.3]} 46. Kh2 {[%clk 0:00:19.5]} 46... bxc6 {[%clk 0:00:14.5]} 47.
Nxc6 {[%clk 0:00:19.7]} 47... Qxf4+ {[%clk 0:00:14.6]} 0-1

[Event "Late-Titled-Tuesday-Blitz-April-30-2024"]
[Site "Chess.com"]
[Date "2024.04.30"]
[Round "10"]
[White "ahmedkandiliii"]
[Black "cthulhuuu"]
[Result "0-1"]
[WhiteElo "2601"]
[BlackElo "2493"]
[TimeControl "180+1"]
[EndTime "15:54:34 PDT"]
[Termination "cthulhuuu won by checkmate"]

1. Nf3 {[%clk 0:03:00]} 1... Nf6 {[%clk 0:02:52.7]} 2. g3 {[%clk 0:02:59.9]}
2... g6 {[%clk 0:02:51.6]} 3. Bg2 {[%clk 0:03:00.8]} 3... Bg7 {[%clk 0:02:52.1]}
4. O-O {[%clk 0:03:01.7]} 4... O-O {[%clk 0:02:52.7]} 5. c4 {[%clk 0:03:02.3]}
5... d6 {[%clk 0:02:53.1]} 6. Nc3 {[%clk 0:03:02.8]} 6... c5 {[%clk 0:02:53.4]}
7. b3 {[%clk 0:03:02.7]} 7... d5 {[%clk 0:02:38.9]} 8. cxd5 {[%clk 0:02:57.9]}
8... Nxd5 {[%clk 0:02:39]} 9. Bb2 {[%clk 0:02:58.4]} 9... Nc6 {[%clk 0:02:35.9]}
10. Rc1 {[%clk 0:02:57.3]} 10... b6 {[%clk 0:01:50.4]} 11. d3 {[%clk 0:02:49.6]}
11... Bb7 {[%clk 0:01:47.9]} 12. Qd2 {[%clk 0:02:49.1]} 12... Nd4 {[%clk
0:01:44.7]} 13. Nxd4 {[%clk 0:02:40.1]} 13... Bxd4 {[%clk 0:01:16.1]} 14. Nxd5
{[%clk 0:02:34.8]} 14... Bxd5 {[%clk 0:01:16.2]} 15. Bxd4 {[%clk 0:02:33.2]}
15... Bxg2 {[%clk 0:01:14.6]} 16. Kxg2 {[%clk 0:02:27.3]} 16... Qxd4 {[%clk
0:01:14.3]} 17. Rc4 {[%clk 0:02:27.2]} 17... Qd5+ {[%clk 0:01:14.5]} 18. Kg1
{[%clk 0:02:27.1]} 18... e5 {[%clk 0:01:14.1]} 19. Qh6 {[%clk 0:02:26.5]} 19...
f5 {[%clk 0:01:12.1]} 20. Rfc1 {[%clk 0:02:24.2]} 20... a5 {[%clk 0:00:58.6]}
21. h4 {[%clk 0:02:23.9]} 21... Rf6 {[%clk 0:00:24.3]} 22. h5 {[%clk 0:02:22]}
22... f4 {[%clk 0:00:24.2]} 23. Qg5 {[%clk 0:02:15.9]} 23... Rf5 {[%clk
0:00:17.5]} 24. Qg4 {[%clk 0:02:15.9]} 24... Rxh5 {[%clk 0:00:16.4]} 25. Re4
{[%clk 0:02:13.9]} 25... Rf8 {[%clk 0:00:08.4]} 26. f3 {[%clk 0:02:09.5]} 26...
Rff5 {[%clk 0:00:08]} 27. gxf4 {[%clk 0:02:04.8]} 27... exf4 {[%clk 0:00:06.4]}
28. Kf2 {[%clk 0:02:00]} 28... Qd8 {[%clk 0:00:02.1]} 29. Rxf4 {[%clk
0:01:48.6]} 29... Rxf4 {[%clk 0:00:02]} 30. Qxf4 {[%clk 0:01:48.2]} 30... Qh4+
{[%clk 0:00:02.4]} 31. Qxh4 {[%clk 0:01:48]} 31... Rxh4 {[%clk 0:00:03.3]} 32.
Kg3 {[%clk 0:01:48.5]} 32... Rd4 {[%clk 0:00:03.1]} 33. f4 {[%clk 0:01:46.5]}
33... a4 {[%clk 0:00:03.4]} 34. Rc4 {[%clk 0:01:44.8]} 34... Rxc4 {[%clk
0:00:03.7]} 35. bxc4 {[%clk 0:01:39.8]} 35... Kf7 {[%clk 0:00:03.6]} 36. Kg4
{[%clk 0:01:39.1]} 36... h6 {[%clk 0:00:04.1]} 37. e4 {[%clk 0:01:37.1]} 37...
Kf6 {[%clk 0:00:04.5]} 38. e5+ {[%clk 0:01:32.6]} 38... Ke6 {[%clk 0:00:04.2]}
39. a3 {[%clk 0:01:33.1]} 39... Kf7 {[%clk 0:00:02.9]} 40. f5 {[%clk 0:01:32.9]}
40... gxf5+ {[%clk 0:00:03.4]} 41. Kxf5 {[%clk 0:01:33.7]} 41... Ke7 {[%clk
0:00:04.3]} 42. Ke4 {[%clk 0:01:17.4]} 42... Ke6 {[%clk 0:00:05.2]} 43. d4
{[%clk 0:01:14]} 43... cxd4 {[%clk 0:00:06.1]} 44. Kxd4 {[%clk 0:01:14.9]} 44...
h5 {[%clk 0:00:06.8]} 45. Ke4 {[%clk 0:01:15.8]} 45... h4 {[%clk 0:00:07]} 46.
Kf4 {[%clk 0:01:15.8]} 46... h3 {[%clk 0:00:07.1]} 47. Kg3 {[%clk 0:01:16.3]}
47... Kxe5 {[%clk 0:00:07.6]} 48. Kxh3 {[%clk 0:01:16.2]} 48... Kd4 {[%clk
0:00:08.1]} 49. c5 {[%clk 0:01:15.2]} 49... bxc5 {[%clk 0:00:08.3]} 50. Kg3
{[%clk 0:01:16.1]} 50... Kc3 {[%clk 0:00:08.3]} 51. Kf4 {[%clk 0:01:17]} 51...
Kb3 {[%clk 0:00:08.6]} 52. Kf5 {[%clk 0:01:17.9]} 52... c4 {[%clk 0:00:09.1]}
53. Ke5 {[%clk 0:01:18.8]} 53... c3 {[%clk 0:00:09.6]} 54. Kd4 {[%clk
0:01:19.7]} 54... c2 {[%clk 0:00:10.1]} 55. Kd3 {[%clk 0:01:20.4]} 55... c1=Q
{[%clk 0:00:10.3]} 56. Ke4 {[%clk 0:01:21.3]} 56... Qc5 {[%clk 0:00:10.2]} 57.
Kd3 {[%clk 0:01:21.4]} 57... Qd5+ {[%clk 0:00:10.3]} 58. Ke3 {[%clk 0:01:21.5]}
58... Kc3 {[%clk 0:00:10.5]} 59. Kf4 {[%clk 0:01:21.8]} 59... Kd4 {[%clk
0:00:11]} 60. Kg4 {[%clk 0:01:22.7]} 60... Qf7 {[%clk 0:00:10.8]} 61. Kg3 {[%clk
0:01:23.6]} 61... Qf5 {[%clk 0:00:10.9]} 62. Kg2 {[%clk 0:01:24.5]} 62... Ke3
{[%clk 0:00:10.9]} 63. Kg1 {[%clk 0:01:25.4]} 63... Qf2+ {[%clk 0:00:10.9]} 64.
Kh1 {[%clk 0:01:25.1]} 64... Qe2 {[%clk 0:00:11.3]} 65. Kg1 {[%clk 0:01:22]}
65... Kf3 {[%clk 0:00:11.7]} 66. Kh1 {[%clk 0:01:22.9]} 66... Qg2# {[%clk
0:00:12]} 0-1